bitfinex/quotes_ETHUSD_20230119
["timestamp","ask_amount","ask_price","bid_price","bid_amount"]
[1674122349345,0.09907796,1527.7,1527.6,3.29174759]
[1674122349556,0.09907796,1527.7,1527.6,9.83795759]
[1674122349816,0.09907796,1527.7,1527.6,12.67752352]
[1674122350202,0.09907796,1527.7,1527.6,13.81432289]
[1674122355124,0.09907796,1527.7,1527.6,13.81427519]
[1674122356214,0.09907796,1527.7,1527.6,12.67752352]
[1674122359157,0.09907796,1527.7,1527.6,19.22373352]
[1674122361056,0.09907796,1527.7,1527.6,12.67752352]
[1674122361282,0.09907796,1527.7,1527.6,9.90395759]
[1674122364325,0.09907796,1527.7,1527.6,3.35774759]
[1674122364543,0.09907796,1527.7,1527.6,3.29174759]
[1674122365579,0.09551917,1527.7,1527.6,3.29174759]
[1674122375333,2.63051917,1527.7,1527.5,0.066]
[1674122375538,1.38351917,1527.7,1527.5,3.29174759]
[1674122385233,4.51654859,1527.7,1527.5,3.29174759]
[1674122387255,1.38351917,1527.7,1527.5,3.29174759]
[1674122389030,1.38351917,1527.7,1527.5,3.97781558]
[1674122389231,1.38351917,1527.7,1527.6,1.13684137]
[1674122389448,0.09551917,1527.7,1527.5,4.04381558]
[1674122389660,0.09551917,1527.7,1527.5,3.97781558]
[1674122389992,0.09551917,1527.7,1527.6,1.1368352]
[1674122390215,3.09974859,1527.7,1527.6,1.1368352]
[1674122390377,3.09974859,1527.7,1527.6,1.1368421]
[1674122390603,3.09974859,1527.7,1527.5,4.04381558]
[1674122390936,0.09551917,1527.7,1527.5,3.29174759]
[1674122400782,0.09551917,1527.7,1527.6,1.13686074]
[1674122401628,0.09551917,1527.7,1527.5,3.35774759]
[1674122401845,0.09551917,1527.7,1527.5,3.29174759]
[1674122403945,0.09551917,1527.7,1527.4,9.79594397]
[1674122404135,3.87819669,1527.7,1527.5,1.13693996]
[1674122404345,5.16019669,1527.7,1527.5,1.13693996]
[1674122404587,5.22316914,1527.7,1527.5,1.13693996]
[1674122404967,5.08216914,1527.7,1527.5,1.13693996]
[1674122405514,11.62802914,1527.7,1527.5,1.13693996]
[1674122405849,11.62802914,1527.7,1527.4,3.35774759]
[1674122406064,11.62802914,1527.7,1527.4,3.29174759]
[1674122406928,11.62802914,1527.7,1527.4,3.97781558]
[1674122408326,10.94124956,1527.7,1527.5,1.13691338]
[1674122411690,7.89083245,1527.7,1527.5,1.13691338]
[1674122412917,6.60883245,1527.7,1527.5,1.13691338]
[1674122415687,0.06297245,1527.7,1527.5,1.13691338]
[1674122416007,47.24143457,1527.8,1527.5,1.13691338]
[1674122418187,45.95943457,1527.8,1527.5,1.13691338]
[1674122420283,0.491,1527.7,1527.5,1.13691338]
[1674122423319,46.45043457,1527.8,1527.5,1.13691338]
[1674122424522,46.45043457,1527.8,1527.5,2.13691338]
[1674122424678,46.45043457,1527.8,1527.4,6.54102156]
[1674122424892,46.45043457,1527.8,1527.5,2.13687765]
[1674122425220,46.45043457,1527.8,1527.4,10.68115608]
[1674122425432,46.45043457,1527.8,1527.5,1.13687451]
[1674122426292,39.90475457,1527.8,1527.5,1.8229425]
[1674122427147,39.90475457,1527.8,1527.4,10.68115608]
[1674122427319,39.90475457,1527.8,1527.5,1.82293566]
[1674122427528,44.78286921,1527.8,1527.5,1.82293566]
[1674122427773,44.78286921,1527.8,1527.4,10.68115608]
[1674122428025,39.90475457,1527.8,1527.5,1.13687055]
[1674122430301,40.93178497,1527.8,1527.5,1.13687055]
[1674122430524,39.90475457,1527.8,1527.5,1.13687055]
[1674122433350,40.93178497,1527.8,1527.5,1.13687055]
[1674122434372,39.90475457,1527.8,1527.5,1.13687055]
[1674122434784,39.90475457,1527.8,1527.5,2.13687055]
[1674122434981,39.90475457,1527.8,1527.5,1.0]
[1674122435191,39.90475457,1527.8,1527.4,7.54451268]
[1674122435400,39.90475457,1527.8,1527.5,1.1368955]
[1674122435652,39.90475457,1527.8,1527.5,2.1368955]
[1674122435867,39.90475457,1527.8,1527.5,1.0]
[1674122436242,39.90475457,1527.8,1527.6,1.13688526]
[1674122436447,39.90475457,1527.8,1527.5,1.68606799]
[1674122436448,39.21797499,1527.8,1527.5,1.68606799]
[1674122436710,39.21797499,1527.8,1527.5,3.85195735]
[1674122436929,39.21797499,1527.8,1527.6,1.13678738]
[1674122437140,39.09497499,1527.8,1527.6,1.13678738]
[1674122437292,32.47761499,1527.8,1527.5,2.71516997]
[1674122437502,32.47761499,1527.8,1527.6,1.40831942]
[1674122437725,32.47761499,1527.8,1527.6,3.29174759]
[1674122437726,12.66531499,1527.8,1527.6,3.29174759]
[1674122438294,12.66531499,1527.8,1527.7,3.29174759]
[1674122438449,12.17431499,1527.8,1527.7,4.42848448]
[1674122438658,12.17431499,1527.8,1527.7,13.2538857]
[1674122438890,12.17431499,1527.8,1527.7,13.3198857]
[1674122440168,12.17431499,1527.8,1527.7,19.8656657]
[1674122440378,12.17431499,1527.8,1527.7,20.55173369]
[1674122441218,12.17431499,1527.8,1527.7,21.58083567]
[1674122441629,12.17431499,1527.8,1527.7,20.55173369]
[1674122442227,12.17431499,1527.8,1527.7,20.89476768]
[1674122442563,12.17431499,1527.8,1527.7,24.57939014]
[1674122443236,12.17431499,1527.8,1527.7,23.55028816]
[1674122443404,0.06297245,1527.8,1527.7,24.57939014]
[1674122443625,0.10289913,1528.0,1527.7,24.57939014]
[1674122443811,0.10289913,1528.0,1527.8,6.88642349]
[1674122444021,0.10289913,1528.0,1527.9,9.83667759]
[1674122444244,0.10289913,1528.0,1527.9,9.90267759]
[1674122445190,0.10289913,1528.0,1527.9,11.03920609]
[1674122445611,0.10289913,1528.0,1527.9,9.90267759]
[1674122445828,0.10289913,1528.0,1527.9,12.59458665]
[1674122446821,0.10289913,1528.0,1527.9,19.13951665]
[1674122447188,0.10289913,1528.0,1527.9,20.276032]
[1674122447399,0.10289913,1528.0,1527.9,19.13951665]
[1674122449510,0.10289913,1528.0,1527.9,20.41851665]
[1674122449715,0.10289913,1528.0,1527.9,24.55500995]
[1674122450344,0.10289913,1528.0,1527.9,44.55101961]
[1674122450554,0.10289913,1528.0,1527.9,46.04939225]
[1674122452983,0.10289913,1528.0,1527.9,44.55101961]
[1674122453970,0.10289913,1528.0,1527.9,43.41452631]
[1674122454760,0.10289913,1528.0,1527.9,44.55093556]
[1674122455128,0.10289913,1528.0,1527.9,43.41452631]
[1674122457861,0.10035205,1528.0,1527.9,43.41452631]
[1674122461860,0.10035205,1528.0,1527.9,42.13552631]
[1674122462297,0.07338589,1528.0,1527.9,42.13552631]
[1674122463181,0.07338589,1528.0,1527.9,35.59059631]
[1674122463515,0.07338589,1528.0,1527.9,32.89868725]
[1674122464769,0.07338589,1528.0,1527.9,29.89868725]
[1674122464992,0.07338589,1528.0,1527.9,9.90267759]
[1674122465177,0.07338589,1528.0,1527.9,3.35774759]
[1674122465389,0.07338589,1528.0,1527.9,3.29174759]
[1674122469404,0.22111454,1528.0,1527.9,3.29174759]
[1674122470075,0.22111454,1528.0,1527.8,0.066]
[1674122470229,1.22111454,1528.0,1527.7,23.06200966]
[1674122470604,1.40211145,1527.9,1527.7,0.066]
[1674122470756,1.40211145,1527.9,1527.5,16.02275]
[1674122470972,13.51345399,1527.9,1527.6,3.29174759]
[1674122471172,1.3513454,1527.8,1527.6,3.29174759]
[1674122473382,21.43441499,1527.9,1527.7,3.29174759]
[1674122473592,21.43441499,1527.9,1527.7,9.83746759]
[1674122473802,21.43441499,1527.9,1527.7,9.90346759]
[1674122480668,21.43441499,1527.9,1527.7,3.35774759]
[1674122480891,24.83432794,1527.9,1527.7,3.29174759]
[1674122482334,21.43441499,1527.9,1527.7,3.29174759]
[1674122483353,21.43441499,1527.9,1527.7,9.83751759]
[1674122483509,21.43441499,1527.9,1527.7,9.90351759]
[1674122484170,21.43441499,1527.9,1527.7,3.35774759]
[1674122484369,21.43441499,1527.9,1527.7,3.29174759]
[1674122484539,24.83432794,1527.9,1527.7,3.29174759]
[1674122484756,24.83432794,1527.9,1527.6,6.61192]
[1674122485063,24.83432794,1527.9,1527.6,9.90366759]
[1674122486116,24.83432794,1527.9,1527.6,0.066]
[1674122486117,41.42093575,1527.9,1527.6,0.066]
[1674122486385,1.289,1527.7,1527.5,20.06200966]
[1674122486700,1.289,1527.7,1527.5,0.066]
[1674122486865,1.289,1527.7,1527.3,7.824402]
[1674122487078,0.1289,1527.6,1527.4,3.29174759]
[1674122487429,0.1289,1527.6,1527.3,0.076002]
[1674122487648,12.10800035,1527.5,1527.3,3.30174959]
[1674122487854,12.1709728,1527.5,1527.3,3.30174959]
[1674122490629,12.1709728,1527.5,1527.3,6.94765252]
[1674122490889,12.1709728,1527.5,1527.3,7.01365252]
[1674122492273,12.1709728,1527.5,1527.3,3.36774959]
[1674122492426,12.1709728,1527.5,1527.3,3.30174959]
[1674122507295,12.16794325,1527.5,1527.3,3.30174959]
[1674122510114,12.16794325,1527.5,1527.3,0.010002]
[1674122510449,1.7381,1527.4,1527.3,0.010002]
[1674122510661,4.56694833,1527.4,1527.3,0.010002]
[1674122510856,4.07584833,1527.4,1527.3,0.010002]
[1674122515456,10.62291833,1527.4,1527.3,0.010002]
[1674122515684,10.68589078,1527.4,1527.3,0.010002]
[1674122523142,11.17699078,1527.4,1527.3,0.010002]
[1674122523651,17.72406078,1527.4,1527.3,0.010002]
[1674122525760,17.95406078,1527.4,1527.3,0.010002]
[1674122526273,29.27504036,1527.4,1527.3,0.010002]
[1674122526759,32.04618672,1527.4,1527.3,0.010002]
[1674122527078,32.72967008,1527.4,1527.3,0.010002]
[1674122527232,33.75945343,1527.4,1527.3,0.010002]
[1674122527444,33.07518086,1527.4,1527.3,0.010002]
[1674122533069,33.07518086,1527.4,1527.3,0.00772143]
[1674122533543,32.04539751,1527.4,1527.3,0.00772143]
[1674122533808,32.04512391,1527.4,1527.3,0.00772143]
[1674122535232,31.84225115,1527.4,1527.3,0.00772143]
[1674122535760,31.15626078,1527.4,1527.3,0.00772143]
[1674122537175,29.90926078,1527.4,1527.3,0.00772143]
[1674122538680,30.59525115,1527.4,1527.3,0.00772143]
[1674122538889,29.90926078,1527.4,1527.3,0.00772143]
[1674122539226,30.59525115,1527.4,1527.3,0.00772143]
[1674122540596,29.31525115,1527.4,1527.3,0.00772143]
[1674122541335,29.51822234,1527.4,1527.3,0.00772143]
[1674122541479,29.86201532,1527.4,1527.3,0.00772143]
[1674122541905,30.20249491,1527.4,1527.3,0.00772143]
[1674122542346,30.20249491,1527.4,1527.3,0.00572143]
[1674122542783,29.86010575,1527.4,1527.3,0.00572143]
[1674122543599,30.54521956,1527.4,1527.3,0.00572143]
[1674122543834,28.62926078,1527.4,1527.3,0.00572143]
[1674122544212,29.31437459,1527.4,1527.3,0.00572143]
[1674122544679,28.62926078,1527.4,1527.3,0.00572143]
[1674122546279,27.34126078,1527.4,1527.3,0.00572143]
[1674122546440,24.51241245,1527.4,1527.3,0.00572143]
[1674122548739,17.96534245,1527.4,1527.3,0.00572143]
[1674122548982,17.24424245,1527.4,1527.3,0.00572143]
[1674122553002,10.69717245,1527.4,1527.3,1.29672143]
[1674122553303,10.69717245,1527.4,1527.3,1.42639357]
[1674122553304,0.06297245,1527.4,1527.3,1.42639357]
[1674122553472,21.19684325,1527.5,1527.3,1.42639357]
[1674122555248,12.16794325,1527.5,1527.3,1.42639357]
[1674122558868,12.16794325,1527.5,1527.4,4.72538695]
[1674122559078,12.16794325,1527.5,1527.4,6.01438695]
[1674122559289,12.16794325,1527.5,1527.4,6.08038695]
[1674122559525,12.16794325,1527.5,1527.4,12.62745695]
[1674122562596,12.16483095,1527.5,1527.4,12.62745695]
[1674122563536,12.16483095,1527.5,1527.4,23.46252695]
[1674122563953,0.06297245,1527.5,1527.4,25.28396349]
[1674122564106,12.1018585,1527.8,1527.4,26.77821035]
[1674122564360,12.16483095,1527.8,1527.6,14.09242]
[1674122564549,12.16483095,1527.8,1527.7,9.83752759]
[1674122564772,12.16483095,1527.8,1527.7,9.90352759]
[1674122565011,12.16483095,1527.8,1527.7,11.18252759]
[1674122565231,12.16483095,1527.8,1527.7,13.83802235]
[1674122566664,12.16483095,1527.8,1527.7,12.55902235]
[1674122572278,12.16283095,1527.8,1527.7,12.55902235]
[1674122572520,12.16483095,1527.8,1527.7,12.55902235]
[1674122574303,12.16483095,1527.8,1527.7,3.35774759]
[1674122574521,12.16483095,1527.8,1527.7,3.29174759]
[1674122577615,12.16483095,1527.8,1527.6,0.066]
[1674122577832,12.16483095,1527.8,1527.5,10.89546]
[1674122578162,12.16483095,1527.8,1527.5,14.18720759]
[1674122578372,12.16483095,1527.8,1527.6,1.41872076]
[1674122578604,12.16483095,1527.8,1527.5,14.18720759]
[1674122583775,12.1619566,1527.8,1527.5,14.18720759]
[1674122587393,12.1619566,1527.8,1527.5,14.1843483]
[1674122591490,12.1619566,1527.8,1527.5,15.68013724]
[1674122592056,12.1619566,1527.8,1527.6,5.57074759]
[1674122592221,12.1619566,1527.8,1527.7,10.39460235]
[1674122592436,12.1619566,1527.8,1527.7,11.59727439]
[1674122592768,0.06297245,1527.8,1527.7,24.38767685]
[1674122592982,9.83655834,1528.0,1527.7,23.70305439]
[1674122593209,21.93554249,1528.0,1527.9,1.289]
[1674122593550,21.93554249,1528.0,1527.9,17.67060759]
[1674122593551,12.23534249,1528.0,1527.9,17.67060759]
[1674122593862,12.23534249,1528.0,1527.9,17.73660759]
[1674122594207,12.23534249,1528.0,1527.9,20.53731389]
[1674122595489,12.23534249,1528.0,1527.9,21.67385023]
[1674122595690,12.23534249,1528.0,1527.9,20.53731389]
[1674122596063,0.13635834,1528.0,1527.9,20.53731389]
[1674122596225,0.07338589,1528.0,1527.9,20.53731389]
[1674122597515,0.07338589,1528.0,1527.9,21.67384479]
[1674122597734,0.07338589,1528.0,1527.9,26.85100882]
[1674122598263,0.07338589,1528.0,1527.9,26.16638636]
[1674122598473,0.07338589,1528.0,1527.9,26.85100882]
[1674122598652,0.07338589,1528.0,1527.9,26.16638636]
[1674122599707,0.07338589,1528.0,1527.9,26.85100882]
[1674122599890,0.07338589,1528.0,1527.9,26.16638636]
[1674122600683,0.07338589,1528.0,1527.9,24.67384479]
[1674122600995,0.07338589,1528.0,1527.9,23.53731389]
[1674122605691,0.07338589,1528.0,1527.9,22.24831389]
[1674122608192,0.07060859,1528.0,1527.9,22.24831389]
[1674122626000,0.07060859,1528.0,1527.9,19.44760759]
[1674122629894,0.07060859,1528.0,1527.9,22.07745145]
[1674122630214,0.07060859,1528.0,1527.9,20.58416385]
[1674122631098,0.07060859,1528.0,1527.9,22.07744472]
[1674122632057,0.07060859,1528.0,1527.9,22.76206718]
[1674122632215,0.07060859,1528.0,1527.9,28.95277531]
[1674122637534,0.07060859,1528.0,1527.9,22.75821179]
[1674122640048,0.07060859,1528.0,1527.9,23.78731377]
[1674122650690,0.07060859,1528.0,1527.9,22.75821179]
[1674122651727,0.07060859,1528.0,1527.9,23.78731377]
[1674122652219,0.07060859,1528.0,1527.9,22.75821179]
[1674122654323,0.07060859,1528.0,1527.9,23.78731377]
[1674122654549,0.07060859,1528.0,1527.9,29.97763636]
[1674122655485,0.07060859,1528.0,1527.9,23.78731377]
[1674122657311,0.07060859,1528.0,1527.9,23.10269131]
[1674122658673,0.06762437,1528.0,1527.9,23.10269131]
[1674122662874,0.06762437,1528.0,1527.9,23.78877823]
[1674122664362,0.06762437,1528.0,1527.9,17.24384823]
[1674122664533,0.06762437,1528.0,1527.9,16.21474625]
[1674122669692,0.06762437,1528.0,1527.9,12.52865933]
[1674122670633,0.06762437,1528.0,1527.9,11.03537846]
[1674122671069,0.06762437,1528.0,1527.9,12.509804]
[1674122672295,0.06762437,1528.0,1527.9,2.6769818]
[1674122672663,0.06762437,1528.0,1527.9,2.6109818]
[1674122672871,0.06762437,1528.0,1527.9,1.13655626]
[1674122674869,1.31462437,1528.0,1527.8,28.0815852]
[1674122675080,1.31462437,1528.0,1527.8,1.54042554]
[1674122675081,1.37846244,1527.9,1527.8,1.54042554]
[1674122675238,1.37846244,1527.9,1527.8,1.13665667]
[1674122675448,1.37846244,1527.9,1527.7,1.47442554]
[1674122675449,2.37846244,1527.9,1527.7,1.47442554]
[1674122675710,0.23784624,1527.8,1527.6,28.76861212]
[1674122675932,0.23784624,1527.8,1527.6,11.37826313]
[1674122676077,0.23784624,1527.8,1527.6,10.58992451]
[1674122676282,0.23784624,1527.8,1527.6,0.066]
[1674122676283,12.82783039,1527.8,1527.6,0.066]
[1674122676538,1.28278304,1527.7,1527.5,9.80220444]
[1674122676746,1.28278304,1527.7,1527.6,1.13678109]
[1674122680296,1.28278304,1527.7,1527.6,1.13679225]
[1674122680709,1.28278304,1527.7,1527.5,11.37876313]
[1674122680954,12.90617428,1527.8,1527.6,1.13678516]
[1674122681722,12.90617428,1527.8,1527.5,11.37876313]
[1674122681897,12.90617428,1527.8,1527.5,12.06485005]
[1674122682397,12.90617428,1527.8,1527.5,11.37876313]
[1674122682818,12.90617428,1527.8,1527.6,1.13677204]
[1674122683491,12.90367809,1527.8,1527.6,1.13677204]
[1674122684710,12.66832804,1527.8,1527.6,1.13677204]
[1674122684936,12.66832804,1527.8,1527.6,7.68294204]
[1674122685163,12.66832804,1527.8,1527.6,6.61217]
[1674122686147,12.17732804,1527.8,1527.6,6.61217]
[1674122692604,12.17732804,1527.8,1527.6,0.066]
[1674122692855,1.2177328,1527.7,1527.5,3.35774759]
[1674122693177,1.2177328,1527.7,1527.4,28.76958212]
[1674122693395,1.2177328,1527.7,1527.5,1.13684354]
[1674122693556,12.17732804,1527.8,1527.4,32.06132971]
[1674122693769,18.7073166,1527.8,1527.4,31.37524279]
[1674122693983,3.15873166,1527.7,1527.4,31.37524279]
[1674122694187,3.15873166,1527.7,1527.4,11.37923313]
[1674122694450,3.15873166,1527.7,1527.4,9.90480759]
[1674122697012,3.64973166,1527.7,1527.4,9.90480759]
[1674122697356,3.1741031,1527.7,1527.4,9.90480759]
[1674122701359,1.8861031,1527.7,1527.4,9.90480759]
[1674122703503,0.18861031,1527.6,1527.4,0.066]
[1674122703723,0.18861031,1527.6,1527.5,1.13684323]
[1674122704023,0.18861031,1527.6,1527.4,0.68608692]
[1674122704238,1.8861031,1527.7,1527.3,20.82847837]
[1674122704446,1.8861031,1527.7,1527.4,1.13685236]
[1674122706978,1.8861031,1527.7,1527.4,1.82293928]
[1674122710987,8.42930205,1527.7,1527.3,24.12022596]
[1674122711136,17.3808745,1527.7,1527.4,1.1368974]
[1674122711804,17.3808745,1527.7,1527.4,1.82298432]
[1674122711969,1.73808745,1527.6,1527.4,1.82298432]
[1674122712178,17.3808745,1527.7,1527.4,1.82298432]
[1674122713265,14.3808745,1527.7,1527.4,1.82298432]
[1674122714019,8.95157245,1527.7,1527.4,2.8520863]
[1674122714215,8.95157245,1527.7,1527.4,5.37286421]
[1674122714421,8.95157245,1527.7,1527.5,1.1368974]
[1674122715230,8.95157245,1527.7,1527.5,1.82298432]
[1674122715602,8.95157245,1527.7,1527.4,13.32341235]
[1674122715816,8.95157245,1527.7,1527.5,1.13685126]
[1674122716646,8.95157245,1527.7,1527.5,1.82293818]
[1674122719268,8.95157245,1527.7,1527.5,3.82362754]
[1674122719474,8.95157245,1527.7,1527.6,1.13685126]
[1674122720114,0.06297245,1527.7,1527.6,1.13685126]
[1674122720326,0.06297245,1527.7,1527.5,2.68677628]
[1674122720327,13.4469566,1527.8,1527.5,2.00068936]
[1674122720476,19.9923766,1527.8,1527.4,12.32321235]
[1674122720693,19.9923766,1527.8,1527.5,1.13684771]
[1674122723061,26.5377966,1527.8,1527.4,0.68608692]
[1674122723373,26.5377966,1527.8,1527.4,2.85206186]
[1674122727263,0.491,1527.7,1527.5,1.13687296]
[1674122727594,2.65377966,1527.7,1527.4,0.68608692]
[1674122727890,20.4833766,1527.8,1527.4,2.85204]
[1674122729364,20.4833766,1527.8,1527.4,9.39905]
[1674122729521,20.4833766,1527.8,1527.5,1.1368511]
[1674122729732,21.16849041,1527.8,1527.5,1.82293802]
[1674122729942,2.04833766,1527.7,1527.5,1.82293802]
[1674122730202,2.04833766,1527.7,1527.6,1.1368511]
[1674122730410,2.04833766,1527.7,1527.4,1.7811889]
[1674122730621,2.04833766,1527.7,1527.5,1.13686741]
[1674122730844,2.04833766,1527.7,1527.4,1.7151889]
[1674122731152,2.04833766,1527.7,1527.4,2.85205857]
[1674122731837,2.04833766,1527.7,1527.5,1.82295659]
[1674122732047,2.04833766,1527.7,1527.6,1.13686967]
[1674122732308,20.4833766,1527.8,1527.5,0.68608692]
[1674122732475,20.4833766,1527.8,1527.5,1.82295659]
[1674122732889,20.4833766,1527.8,1527.6,0.78786588]
[1674122736093,21.16849041,1527.8,1527.6,0.78786588]
[1674122738195,22.43979227,1527.8,1527.6,0.78786588]
[1674122739970,21.41191849,1527.8,1527.6,0.78786588]
[1674122744070,21.16849041,1527.8,1527.6,0.78786588]
[1674122744279,2.11684904,1527.7,1527.6,0.78786588]
[1674122745509,2.11684904,1527.7,1527.6,1.92473718]
[1674122747872,2.11684904,1527.7,1527.6,0.78786588]
[1674122750813,2.11684904,1527.7,1527.6,1.92472598]
[1674122750999,2.11684904,1527.7,1527.6,1.92472154]
[1674122751763,13.9379566,1527.8,1527.6,1.92472154]
[1674122752081,12.1619566,1527.8,1527.7,1.13677805]
[1674122752233,12.1619566,1527.8,1527.7,6.54578]
[1674122752441,12.1619566,1527.8,1527.7,10.40547709]
[1674122752660,12.1619566,1527.8,1527.7,11.40547709]
[1674122752870,12.1619566,1527.8,1527.7,12.09156401]
[1674122753083,12.15842515,1527.8,1527.7,11.09156401]
[1674122753298,12.15842515,1527.8,1527.7,10.40547709]
[1674122753914,12.15842515,1527.8,1527.7,11.09156401]
[1674122755191,12.15842515,1527.8,1527.7,10.40547709]
[1674122759636,12.15842515,1527.8,1527.7,9.26869904]
[1674122760330,12.15842515,1527.8,1527.7,10.40543259]
[1674122760541,12.15842515,1527.8,1527.7,9.26869904]
[1674122761628,12.15842515,1527.8,1527.7,10.40544626]
[1674122761851,12.15842515,1527.8,1527.7,9.26869904]
[1674122764156,12.15842515,1527.8,1527.7,10.40542975]
[1674122764793,12.15842515,1527.8,1527.7,9.26869904]
[1674122765626,12.15842515,1527.8,1527.7,10.40543462]
[1674122769206,12.15842515,1527.8,1527.7,13.69718221]
[1674122775479,12.15842515,1527.8,1527.7,20.24296221]
[1674122775653,12.15842515,1527.8,1527.7,20.92904913]
[1674122776262,0.06297245,1527.8,1527.7,20.92904913]
[1674122776578,12.16307707,1528.0,1527.7,20.92904913]
[1674122776930,12.22604952,1528.0,1527.9,6.54493]
[1674122777087,12.22604952,1528.0,1527.9,6.61093]
[1674122777643,12.22298643,1528.0,1527.9,6.61093]
[1674122777865,12.22298643,1528.0,1527.9,9.11951125]
[1674122778819,12.22298643,1528.0,1527.9,12.41125884]
[1674122779027,12.22298643,1528.0,1527.9,18.95618884]
[1674122780215,12.22298643,1528.0,1527.9,12.41125884]
[1674122780365,12.22298643,1528.0,1527.9,9.90267759]
[1674122783115,12.22298643,1528.0,1527.9,16.44760759]
[1674122789261,12.22298643,1528.0,1527.9,9.90267759]
[1674122793640,12.22298643,1528.0,1527.9,6.61093]
[1674122812523,12.90810024,1528.0,1527.9,0.066]
[1674122812741,14.33920033,1528.0,1527.7,8.08282984]
[1674122812884,14.33920033,1528.0,1527.7,11.37457743]
[1674122815564,15.36707411,1528.0,1527.7,0.0629143]
[1674122815753,1.43392003,1527.9,1527.6,28.85253479]
[1674122816095,2.11903384,1527.9,1527.6,32.14428238]
[1674122816304,2.11903384,1527.9,1527.6,12.14827272]
[1674122816518,2.11903384,1527.9,1527.6,10.68869777]
[1674122817197,1.43392003,1527.9,1527.6,10.68869777]
[1674122818891,2.11903384,1527.9,1527.6,10.68869777]
[1674122819090,1.43392003,1527.9,1527.6,10.68869777]
[1674122819766,1.43392003,1527.9,1527.6,10.68552481]
[1674122821223,14.33920033,1528.0,1527.6,11.37161173]
[1674122821394,14.33920033,1528.0,1527.7,1.13674894]
[1674122821395,1.289,1527.9,1527.7,1.13674894]
[1674122821611,2.97952003,1527.9,1527.7,1.13674894]
[1674122823151,2.97952003,1527.9,1527.8,0.68644019]
[1674122823959,2.97952003,1527.9,1527.6,18.59266376]
[1674122824169,1.289,1527.9,1527.7,1.13674461]
[1674122824382,1.289,1527.9,1527.6,18.59266376]
[1674122824586,1.289,1527.9,1527.7,1.13674763]
[1674122825860,15.61620033,1528.0,1527.7,1.13674763]
[1674122829571,15.61620033,1528.0,1527.6,18.59266376]
[1674122829782,1.56162003,1527.9,1527.6,18.59266376]
[1674122830034,1.56162003,1527.9,1527.6,16.44700189]
[1674122832359,15.85788206,1528.0,1527.6,17.13308881]
[1674122832681,14.18510024,1528.0,1527.7,1.13675268]
[1674122833053,13.49998643,1528.0,1527.7,1.13675268]
[1674122833464,13.49998643,1528.0,1527.7,2.13675268]
[1674122833731,13.49998643,1528.0,1527.6,25.13858376]
[1674122833917,13.49998643,1528.0,1527.7,1.13672179]
[1674122836140,14.18510024,1528.0,1527.7,1.13672179]
[1674122836384,13.49998643,1528.0,1527.7,7.68244179]
[1674122836595,13.49998643,1528.0,1527.7,6.6086343]
[1674122837450,14.18510024,1528.0,1527.7,6.6086343]
[1674122837816,13.49998643,1528.0,1527.7,6.6086343]
[1674122839342,13.49998643,1528.0,1527.7,7.29472122]
[1674122840342,13.49768863,1528.0,1527.8,1.13668315]
[1674122842375,13.49768863,1528.0,1527.7,6.6086343]
[1674122843871,14.18280244,1528.0,1527.7,6.6086343]
[1674122844502,14.18280244,1528.0,1527.7,6.60474864]
[1674122846675,14.42456038,1528.0,1527.7,6.60474864]
[1674122847239,15.45243416,1528.0,1527.7,6.60474864]
[1674122847430,14.42456038,1528.0,1527.7,6.60474864]
[1674122847655,13.49768863,1528.0,1527.7,6.60474864]
[1674122849184,14.18280244,1528.0,1527.7,6.60474864]
[1674122850571,12.90580244,1528.0,1527.7,6.60474864]
[1674122859230,13.147652,1528.0,1527.7,7.29083556]
[1674122861628,13.147652,1528.0,1527.7,6.60474864]
[1674122862928,14.17552578,1528.0,1527.7,6.60474864]
[1674122865011,0.68511381,1527.9,1527.7,6.60474864]
[1674122865429,13.49041197,1528.0,1527.7,6.60474864]
[1674122865430,14.17552578,1528.0,1527.7,6.60474864]
[1674122865658,0.68511381,1527.9,1527.7,6.60474864]
[1674122865867,14.17552578,1528.0,1527.7,6.60474864]
[1674122866178,2.03415501,1527.9,1527.7,6.60474864]
[1674122866387,1.3490412,1527.9,1527.7,6.60474864]
[1674122866616,2.03415501,1527.9,1527.7,6.60474864]
[1674122866758,1.3490412,1527.9,1527.7,6.60474864]
[1674122867971,2.03415501,1527.9,1527.7,6.60474864]
[1674122868129,1.3490412,1527.9,1527.7,6.60474864]
[1674122868340,13.147652,1528.0,1527.7,6.60474864]
[1674122869546,14.17552578,1528.0,1527.7,6.60474864]
[1674122869915,13.147652,1528.0,1527.7,16.44227623]
[1674122870174,12.90210217,1528.0,1527.7,20.25331866]
[1674122870402,12.90210217,1528.0,1527.8,1.13670049]
[1674122870554,12.90210217,1528.0,1527.8,7.68196049]
[1674122870766,12.90210217,1528.0,1527.8,6.6081743]
[1674122871436,12.90210217,1528.0,1527.8,7.75240749]
[1674122874386,12.90210217,1528.0,1527.8,7.75040749]
[1674122874576,12.90210217,1528.0,1527.8,7.75240749]
[1674122875222,12.21698836,1528.0,1527.9,1.13662761]
[1674122875555,12.21698836,1528.0,1527.9,12.91452716]
[1674122875771,12.21698836,1528.0,1527.9,12.97744146]
[1674122876769,12.90210217,1528.0,1527.9,3.14076387]
[1674122876978,16.50797595,1528.0,1527.9,1.13662761]
[1674122877266,16.7497758,1528.0,1527.9,1.13662761]
[1674122878045,29.38366199,1528.0,1527.9,1.13662761]
[1674122878357,31.93081706,1528.0,1527.9,1.13662761]
[1674122878548,33.21781706,1528.0,1527.9,1.13662761]
[1674122879397,31.50395115,1528.0,1527.9,1.13662761]
[1674122881121,31.84755412,1528.0,1527.9,1.13662761]
[1674122882179,33.22087255,1528.0,1527.9,1.13662761]
[1674122882332,31.84755412,1528.0,1527.9,1.13662761]
[1674122882971,33.22087431,1528.0,1527.9,1.13662761]
[1674122883388,31.5070084,1528.0,1527.9,1.13662761]
[1674122884278,30.2180084,1528.0,1527.9,1.13662761]
[1674122888680,31.2473672,1528.0,1527.9,1.13662761]
[1674122893546,31.2473672,1528.0,1527.9,1.13455889]
[1674122894794,30.7564672,1528.0,1527.9,1.13455889]
[1674122897193,31.44097431,1528.0,1527.9,1.13455889]
[1674122897611,32.72397431,1528.0,1527.9,1.13455889]
[1674122898450,31.0101084,1528.0,1527.9,1.13455889]
[1674122899326,29.7231084,1528.0,1527.9,1.13455889]
[1674122900095,30.2140084,1528.0,1527.9,1.13455889]
[1674122900873,31.24292093,1528.0,1527.9,1.13455889]
[1674122901885,29.86960074,1528.0,1527.9,1.13455889]
[1674122902404,31.24292093,1528.0,1527.9,1.13455889]
[1674122903019,30.2140084,1528.0,1527.9,1.13455889]
[1674122904477,30.2140084,1528.0,1527.9,1.18455889]
[1674122906083,31.24296027,1528.0,1527.9,1.18455889]
[1674122906456,28.67096027,1528.0,1527.9,1.18455889]
[1674122906877,27.29764008,1528.0,1527.9,1.18455889]
[1674122907285,27.29764008,1528.0,1527.9,1.23455889]
[1674122907497,28.67096027,1528.0,1527.9,1.23455889]
[1674122907862,27.29764008,1528.0,1527.9,1.23455889]
[1674122908237,28.67096027,1528.0,1527.9,1.23455889]
[1674122909385,28.67096027,1528.0,1527.9,1.28455889]